fUSD/lending_fUSD_20240223
["ID","MTS","AMOUNT","RATE_DAILY","PERIOD"]
[314944838,1708691478058,-2474.45,0.00028904,2]
[314944839,1708691478067,-470.83279079,0.00028904,2]
[314944840,1708691478076,-5329.91,0.00028904,2]
[314944841,1708691478086,-533.86,0.00028904,2]
[314944842,1708691478095,-632.58,0.00028904,2]
[314944843,1708691478106,-500.0,0.00028904,2]
[314944844,1708691478115,-503.34,0.00028904,2]
[314944845,1708691478124,-970.3,0.00028904,2]
[314944846,1708691478133,-500.0,0.00028904,2]
[314944847,1708691478144,-1854.49,0.00028904,2]
[314944848,1708691478156,-661.23,0.00028904,2]
[314944849,1708691478166,-500.0,0.00028904,2]
[314944850,1708691478175,-500.0,0.00028904,2]
[314944851,1708691478185,-500.0,0.00028904,2]
[314944852,1708691478194,-500.0,0.00028904,2]
[314944853,1708691478203,-500.0,0.00028904,2]
[314944854,1708691478212,-500.0,0.00028904,2]
[314944855,1708691478221,-557.39,0.00028904,2]
[314944856,1708691478230,-500.0,0.00028904,2]
[314944857,1708691478240,-972.27,0.00028904,2]
[314944858,1708691478249,-2756.03,0.00028904,2]
[314944859,1708691478259,-873.84,0.00028904,2]
[314944860,1708691478268,-500.0,0.00028904,2]
[314944861,1708691478277,-1077.76,0.00028904,2]
[314944862,1708691478287,-151.0,0.00028904,7]
[314944863,1708691478296,-500.0,0.00028904,2]
[314944864,1708691478306,-500.0,0.00028904,2]
[314944865,1708691478316,-1405.36,0.00028904,2]
[314944866,1708691478326,-833.0,0.00028904,2]
[314944867,1708691478336,-2513.22,0.00028904,2]
[314944868,1708691478345,-857.16,0.00028904,2]
[314944869,1708691478357,-1291.5,0.00028904,2]
[314944870,1708691478367,-514.89,0.00028904,2]
[314944871,1708691478376,-700.66,0.00028904,2]
[314944872,1708691478386,-500.0,0.00028904,2]
[314944873,1708691478395,-2031.36,0.00028904,2]
[314944874,1708691478405,-1009.63,0.00028904,2]
[314944875,1708691478415,-500.0,0.00028904,2]
[314944876,1708691478426,-500.0,0.00028904,2]
[314944877,1708691478437,-516.55,0.00028904,2]
[314944878,1708691478447,-692.0,0.00028904,2]
[314944879,1708691478457,-500.0,0.00028904,2]
[314944880,1708691478466,-1085.28,0.00028904,2]
[314944881,1708691478476,-2188.23,0.00028904,2]
[314944882,1708691478485,-500.0,0.00028904,2]
[314944883,1708691478495,-838.28,0.00028904,2]
[314944884,1708691478656,-592.24,0.00028904,2]
[314944885,1708691478709,-151.0,0.00028904,7]
[314944886,1708691478719,-3195.13,0.00028904,2]
[314944887,1708691478729,-3378.46,0.00028904,2]
[314944888,1708691478738,-219.696208,0.00028904,7]
[314944889,1708691478748,-500.0,0.00028904,2]
[314944890,1708691478757,-587.56,0.00028904,2]
[314944891,1708691478766,-2460.31,0.00028904,2]
[314944892,1708691478776,-500.0,0.00028904,2]
[314944893,1708691478785,-826.6,0.00028904,2]
[314944894,1708691478795,-1648.46,0.00028904,2]
[314944895,1708691478806,-536.91,0.00028904,2]
[314944896,1708691478816,-3457.82,0.00028904,2]
[314944897,1708691478827,-500.0,0.00028904,2]
[314944898,1708691478836,-661.28,0.00028904,2]
[314944899,1708691478846,-500.0,0.00028904,2]
[314944900,1708691478856,-500.0,0.00028904,2]
[314944901,1708691478866,-500.0,0.00028904,2]
[314944902,1708691478876,-816.69,0.00028904,2]
[314944903,1708691478886,-1895.05,0.00028904,2]
[314944904,1708691478896,-2058.22,0.00028904,2]
[314944905,1708691478906,-500.0,0.00028904,2]
[314944906,1708691478917,-3825.2,0.00028904,2]
[314944907,1708691478929,-500.0,0.00028904,2]
[314944908,1708691478939,-500.0,0.00028904,2]
[314944909,1708691478948,-1955.25,0.00028904,2]
[314944910,1708691478958,-2682.69787784,0.00028908,2]
[314944911,1708691478967,-961.56,0.0002891,2]
[314944912,1708691478977,-276.0,0.00028915,2]
[314944913,1708691478986,-1006.0,0.00028915,2]
[314944914,1708691478996,-859.0,0.00028915,2]
[314944915,1708691479005,-430.0,0.00028915,2]
[314944916,1708691479014,-1129.901,0.00028915,2]
[314944917,1708691479023,-337.0,0.00028915,2]
[314944918,1708691479032,-322.0,0.00028915,2]
[314944919,1708691479041,-150.0,0.00028915,2]
[314944920,1708691479051,-2891.0,0.00028915,2]
[314944921,1708691479062,-455.0,0.00028915,2]
[314944922,1708691479071,-389.0,0.00028915,2]
[314944923,1708691479081,-7429.0,0.00028915,2]
[314944924,1708691479091,-2693.0,0.00028915,2]
[314944925,1708691479100,-5295.80879144,0.00028915,2]
[314944926,1708691479115,-2881.19120856,0.00028915,2]
[314944927,1708691479124,-5636.0,0.00028915,2]
[314944928,1708691479134,-4104.0,0.00028915,2]
[314944929,1708691479144,-1868.0,0.00028915,2]
[314944930,1708691479155,-19893.0,0.00028915,2]
[314944931,1708691479165,-2295.0,0.00028915,2]
[314944932,1708691479175,-28475.86556714,0.00028915,2]
[314944933,1708691479187,-11751.90343286,0.00028915,2]
[314944934,1708691479197,-2934.0,0.00028915,2]
[314944935,1708691479207,-533.0,0.00028915,2]
[314944936,1708691479216,-954.0,0.00028915,2]
[314944937,1708691479226,-458.0,0.00028915,2]
[314944938,1708691479237,-1040.0,0.00028915,2]
[314944939,1708691479248,-150.0,0.00028915,2]
[314944940,1708691479258,-151.0,0.00028915,7]
[314944941,1708691479268,-151.0,0.00028915,7]
[314944942,1708691479278,-151.0,0.00028915,7]
[314944943,1708691479287,-162.4257198,0.00028917,2]
[314944944,1708691479297,-4983.01824528,0.00028917,2]
[314944945,1708691479307,-151.0,0.00028917,7]
[314944946,1708691479318,-151.0,0.00028917,7]
[314944947,1708691479329,-192.901157,0.00028917,7]
[314944948,1708691479339,-183.19,0.00028923,2]
[314944949,1708691479348,-200.0,0.00028937,2]
[314944950,1708691479360,-551.73,0.00028952,2]
[314944951,1708691479370,-208.0,0.00028962,7]
[314944952,1708691479380,-2281.57991185,0.00028964,2]
[314944953,1708691479389,-8314.85251101,0.00028964,2]
[314944954,1708691479399,-455.79565744,0.00028964,2]
[314944955,1708691479413,-8290.31712366,0.0002898,3]
[314944956,1708691479424,-34953.955668,0.0002898,3]
[314944957,1708691479436,-19649.88026291,0.0002898,3]
[314944958,1708691479447,-3486.4291006,0.0002898,3]
[314944959,1708691479474,-2451.31175938,0.0002898,3]
[314944960,1708691479488,-2822.94953508,0.0002898,3]
[314944961,1708691479499,-25492.25458016,0.0002898,3]
[314944962,1708691479511,-289.2725,0.0002898,3]
[314944963,1708691479523,-506.71950021,0.0002898,3]
[314944964,1708691479533,-570881.96456309,0.0002898,3]
[314944965,1708691479545,-468.71881093,0.0002898,3]
[314944966,1708691479557,-1219.4144672,0.0002898,3]
[314944967,1708691479577,-958.35,0.00028356,2]
[314944968,1708691479586,-22901.2906,0.0002898,3]
[314944969,1708691479598,-5885.07400003,0.0002898,3]
[314944970,1708691479634,-500.0,0.00028082,2]
[314944971,1708691479643,-177400.25796783,0.0002898,3]
[314944972,1708691479654,-8853.34679915,0.0002898,3]
[314944973,1708691479666,-1015.73782321,0.0002898,3]
[314944974,1708691479972,-500.0,0.00027397,2]
[314944975,1708691479981,-527.13114677,0.00027397,2]
[314944976,1708691479991,-500.0,0.00027397,2]
[314944977,1708691480000,-500.0,0.00027397,2]
[314944978,1708691480009,-246.86,0.00027534,2]
[314944979,1708691480018,-500.0,0.00028219,2]
[314944980,1708691480028,-500.0,0.00028356,2]
[314944981,1708691480037,-388.75218926,0.00028493,2]
[314944982,1708691480049,-392.98284367,0.00028493,2]
[314944983,1708691480061,-176.61496707,0.00028493,2]
[314944984,1708691480071,-500.0,0.00028493,2]
[314944985,1708691480081,-958.35,0.0002863,2]
[314944986,1708691480091,-500.0,0.0002863,2]
[314944987,1708691480102,-958.35,0.00028767,2]
[314944988,1708691480112,-500.0,0.00028767,2]
[314944989,1708691480122,-958.35,0.00028904,2]
[314944990,1708691480131,-500.0,0.00028904,2]
[314944991,1708691480141,-3157.75358482,0.0002898,3]
[314944992,1708691480153,-29926.629642,0.0002898,3]
[314944993,1708691480478,-80346.72171174,0.0002898,3]
[314944994,1708691480488,-151.0,0.0002898,7]
[314944995,1708691480498,-151.0,0.0002898,7]
[314944996,1708691480509,-151.0,0.0002898,7]
[314944997,1708691480520,-151.0,0.0002898,7]
[314944998,1708691480531,-151.0,0.0002898,7]
[314944999,1708691480541,-151.0,0.0002898,7]
[314945000,1708691480551,-645.2774114,0.00028993,4]
[314945001,1708691480561,-142222.54542884,0.00029,2]
[314945002,1708691480574,-1083.96802157,0.00029,2]
[314945003,1708691480587,-522.58,0.00029,2]
[314945004,1708691480599,-300.0,0.00029,2]
[314945005,1708691480613,-9562.02536348,0.00029,2]
[314945006,1708691480625,-3159.22463652,0.00029,2]
[314945007,1708691480637,-384.34893729,0.00029,2]
[314945008,1708691480650,-6063.5,0.00029,2]
[314945009,1708691480662,-1047.14,0.00029,2]
[314945010,1708691480675,-1257.25445626,0.00029,2]
[314945011,1708691480692,-390.83246677,0.00029,2]
[314945012,1708691480706,-64654.00320001,0.00029,2]
[314945013,1708691480718,-2756.66029266,0.00029,2]
[314945014,1708691480730,-460.65118638,0.00029,2]
[314945015,1708691480743,-404.04653892,0.00029,2]
[314945016,1708691480756,-24313.74817788,0.00029,2]
[314945017,1708691480770,-24740.9426151,0.00029,2]
[314945018,1708691480782,-970.52867832,0.00029,2]
[314945019,1708691480792,-2048.32132168,0.00029,2]
[314945020,1708691480804,-7701.67867832,0.00029,2]
[314945021,1708691480814,-1000.0,0.00029,2]
[314945022,1708691480824,-140.73669168,0.00029,2]
[314945023,1708691481029,-892.26330832,0.00029,2]
[314945024,1708691481038,-8130.74569612,0.00029,2]
[314945025,1708691481048,-900.0,0.00029,30]
[314945026,1708691481057,-150.1,0.00029,5]
[314945027,1708691481066,-850.0,0.00029,3]
[314945028,1708691481076,-8798.41,0.00029,2]
[314945029,1708691481085,-476.25,0.00029,2]
[314945030,1708691481142,-500.0,0.00029041,2]
[314945031,1708691481151,-500.0,0.00029041,2]
[314945032,1708691481160,-556.58,0.00029041,2]
[314945033,1708691481170,-500.0,0.00029041,2]
[314945034,1708691481179,-526.85,0.00029041,2]
[314945035,1708691481189,-92.32947375,0.00029041,2]
[314945036,1708691481200,-291.97,0.00029041,2]
[314945037,1708691481212,-296.13052625,0.00029041,2]
[314945038,1708691481221,-420.63423774,0.00029041,2]
[314945039,1708691481287,-98.00576226,0.00029041,2]
[314945040,1708691481296,-500.0,0.00029041,2]
[314945041,1708691481305,-500.0,0.00029041,2]
[314945042,1708691481315,-500.0,0.00029041,2]
[314945043,1708691481325,-500.0,0.00029041,2]
[314945044,1708691481334,-510.19,0.00029041,2]
[314945045,1708691481344,-500.0,0.00029041,2]
[314945046,1708691481355,-500.0,0.00029041,2]
[314945047,1708691481364,-500.0,0.00029041,2]
[314945048,1708691481374,-500.0,0.00029041,2]
[314945049,1708691481383,-500.0,0.00029041,2]
[314945050,1708691481392,-500.0,0.00029041,2]
[314945051,1708691481402,-500.0,0.00029041,2]
[314945052,1708691481411,-500.0,0.00029041,2]
[314945053,1708691481422,-500.0,0.00029041,2]
[314945054,1708691481433,-500.0,0.00029041,2]
[314945055,1708691481442,-500.0,0.00029041,2]
[314945056,1708691481451,-500.0,0.00029041,2]
[314945057,1708691481462,-500.0,0.00029041,2]
[314945058,1708691481472,-401.19585033,0.00029041,2]
[314945059,1708691481523,-98.80414967,0.00029041,2]
[314945060,1708691481532,-500.0,0.00029041,2]
[314945061,1708691481541,-866.95,0.00029041,2]
[314945062,1708691481550,-500.0,0.00029041,2]
[314945063,1708691481560,-570.49585033,0.00029041,2]
[314945064,1708692188598,5497.6645771,0.000235,2]
[314945065,1708692334056,208.0,0.00022514,2]
[314945068,1708692456281,9024.18994832,0.00023,2]
[314945069,1708692475982,6016.12663221,0.00023,2]
[314945070,1708692481769,208.20948336,0.00023413,2]
[314945071,1708692491983,5013.43886018,0.00023,2]
[314945072,1708692511988,2612.00164615,0.00023,2]
[314945075,1708692533992,2612.00164615,0.00023,2]
[314945078,1708692553994,2612.00164615,0.00023,2]
[314945081,1708692570114,2612.00164615,0.00023,2]
[314945082,1708692588020,2612.00164615,0.00023,2]
[314945084,1708692612020,2612.00164615,0.00023,2]
[314945085,1708692630009,2612.00164615,0.00023,2]
[314945099,1708692632206,-1241.11389382,0.00023512,2]
[314945100,1708692632215,-162.18121019,0.00023513,2]
[314945101,1708692632224,-162.18121019,0.00023513,2]
[314945102,1708692632233,-519.3,0.000238,2]
[314945103,1708692632241,-750.0,0.00025,3]
[314945104,1708692632250,-1008.53065537,0.00025,2]
[314945105,1708692632260,-160.5324337,0.00025512,2]
[314945106,1708692632269,-250.0,0.00025604,2]
[314945107,1708692632278,-2000.0,0.00025612,2]
[314945108,1708692632287,-823.48,0.00025613,2]
[314945109,1708692632296,-173.89,0.00025669,2]
[314945110,1708692632305,-169.02,0.00025718,2]
[314945111,1708692632314,-487.95,0.00025718,2]
[314945112,1708692632323,-150.99,0.00025718,2]
[314945113,1708692632332,-1867.23,0.00025718,2]
[314945114,1708692632341,-20600.16,0.00025718,2]
[314945115,1708692632350,-2718.72,0.00025737,2]
[314945116,1708692632359,-160.53243369,0.00025741,2]
[314945117,1708692632370,-3903.07,0.00025741,2]
[314945118,1708692632379,-8160.02,0.00025741,2]
[314945119,1708692632389,-160.53243369,0.0002597,2]
[314945120,1708692632398,-519.3,0.00026064,2]
[314945121,1708692632407,-150.0,0.00026079,2]
[314945122,1708692632416,-160.53243369,0.00026199,2]
[314945123,1708692632426,-173.89,0.00026338,2]
[314945124,1708692632435,-435.0,0.0002638,2]
[314945125,1708692632444,-2328.89078991,0.00026385,2]
[314945126,1708692632453,-341.09,0.00026395,2]
[314945127,1708692632462,-810.09,0.00026395,2]
[314945128,1708692632471,-162.59,0.00026396,2]
[314945129,1708692632480,-160.53243369,0.00026428,2]
[314945130,1708692632490,-160.53243369,0.00026657,2]
[314945132,1708692632500,-208.0,0.00026679,8]
[314945134,1708692632509,-162.59,0.00026689,2]
[314945136,1708692632518,-5793.0506,0.00026797,2]
[314945138,1708692632527,-15185.0,0.00026822,2]
[314945140,1708692632536,-435.0,0.0002688,2]
[314945142,1708692632545,-160.53243369,0.00026886,2]
[314945144,1708692632554,-162.59,0.00026983,2]
[314945146,1708692632563,-2980.2986,0.00026993,2]
[314945148,1708692632572,-2500.0,0.00026993,2]
[314945150,1708692632581,-470.6261,0.00026993,2]
[314945152,1708692632589,-500.0,0.00026993,2]
[314945154,1708692632598,-9325.93655756,0.00026994,2]
[314945155,1708692632607,-157.62675042,0.00026994,2]
[314945158,1708692632618,-3115.44150701,0.00026994,2]
[314945160,1708692632627,-613.82963464,0.00026994,3]
[314945162,1708692632636,-236.71518368,0.00026994,2]
[314945163,1708692632646,-528.67239776,0.00026994,2]
[314945166,1708692632656,-184.28394638,0.00026994,2]
[314945168,1708692632665,-7582.97027343,0.00026994,2]
[314945170,1708692632673,-1280.81209937,0.00026994,2]
[314945172,1708692632682,-1163.0575,0.00026997,2]
[314945174,1708692632691,-207.5861,0.00026997,2]
[314945176,1708692632700,-800.0,0.00027,3]
[314945178,1708692632709,-173.89,0.00027007,2]
[314945180,1708692632718,-205.39112878,0.00027083,2]
[314945182,1708692632727,-155.0,0.00027091,2]
[314945184,1708692632737,-427.89517927,0.00027091,2]
[314945186,1708692632750,-1126.22394775,0.00027092,2]
[314945188,1708692632759,-231.46664248,0.00027092,2]
[314945190,1708692632768,-11201.36903856,0.00027093,2]
[314945193,1708692632785,-9975.47039947,0.00027093,2]
[314945195,1708692632797,-373.90204875,0.00027093,2]
[314945200,1708692632836,-1041982.87058838,0.00027093,2]
[314945202,1708692632845,-239315.11814864,0.00027094,2]
[314945204,1708692632856,-461.51672541,0.00027094,2]
[314945289,1708692638072,-1000.0,0.00026492,2]
[314945290,1708692638081,-992.92586194,0.00027094,2]
[314945291,1708692638213,-1134.74537988,0.00027094,2]
[314945294,1708692638271,-5370.4780936,0.00027094,2]
[314945295,1708692638283,-292.4,0.00027094,2]
[314945296,1708692638327,-32627.5119742,0.00027094,2]
[314945297,1708692638366,-22501.14938161,0.00027094,2]
[314945298,1708692638379,-178422.19925533,0.00027094,2]
[314945299,1708692638389,-635.917789,0.00027096,2]
[314945300,1708692638398,-135574.5097,0.00027097,2]
[314945301,1708692638406,-512.26072802,0.00027097,2]
[314945302,1708692638415,-207.11906719,0.00027097,2]
[314945303,1708692638425,-157.62675042,0.00027115,2]
[314945304,1708692638434,-160.53243369,0.00027115,2]
[314945305,1708692638444,-205.39112878,0.00027187,2]
[314945306,1708692638455,-245000.0,0.00027197,2]
[314945307,1708692638466,-6749.77133332,0.00027197,2]
[314945308,1708692638475,-430.00466079,0.00027197,2]
[314945309,1708692638484,-166.41,0.00027215,2]
[314945311,1708692638493,-3115.44150694,0.00027247,2]
[314945313,1708692638502,-162.59,0.00027276,2]
[314945316,1708692638512,-13862.2217,0.00027297,2]
[314945318,1708692638522,-5000.0,0.00027297,2]
[314945320,1708692638531,-1920.8869,0.00027297,2]
[314945322,1708692638540,-435.0,0.0002739,2]
[314945324,1708692638549,-613.82963463,0.00027392,3]
[314945325,1708692638558,-2511.35,0.00027396,2]
[314945328,1708692638567,-501.48475793,0.00027397,2]
[314945329,1708692638576,-500.0,0.00027397,2]
[314945330,1708692638585,-500.0,0.00027397,2]
[314945331,1708692638595,-500.0,0.00027397,2]
[314945332,1708692638604,-500.0,0.00027397,2]
[314945333,1708692638615,-500.0,0.00027397,2]
[314945334,1708692638625,-500.0,0.00027397,2]
[314945335,1708692638635,-611.5968697,0.00027397,2]
[314945336,1708692638644,-319.61308223,0.00027397,2]
[314945337,1708692638654,-533.71154368,0.00027397,2]
[314945338,1708692638664,-500.0,0.00027397,2]
[314945339,1708692638675,-501.23674738,0.00027397,2]
[314945340,1708692638684,-500.0,0.00027397,2]
[314945341,1708692638693,-500.0,0.00027397,2]
[314945342,1708692638702,-502.84569267,0.00027397,2]
[314945343,1708692638712,-500.0,0.00027397,2]
[314945344,1708692638721,-502.46754737,0.00027397,2]
[314945345,1708692638730,-500.0,0.00027397,2]
[314945346,1708692638743,-500.0,0.00027397,2]
[314945347,1708692638756,-500.0,0.00027397,2]
[314945348,1708692638765,-500.0,0.00027397,2]
[314945349,1708692638774,-500.0,0.00027397,2]
[314945350,1708692638783,-1000.0,0.00027397,7]
[314945351,1708692638794,-500.0,0.00027397,2]
[314945352,1708692638803,-500.0,0.00027397,2]
[314945353,1708692638813,-500.0,0.00027397,2]
[314945354,1708692638822,-500.0,0.00027397,2]
[314945355,1708692638832,-500.0,0.00027397,2]
[314945356,1708692638841,-500.0,0.00027397,2]
[314945357,1708692638850,-500.0,0.00027397,2]
[314945358,1708692638859,-500.0,0.00027397,2]
[314945359,1708692638870,-500.0,0.00027397,2]
[314945360,1708692638879,-500.0,0.00027397,2]
[314945361,1708692638888,-500.0,0.00027397,2]
[314945362,1708692638898,-500.0,0.00027397,2]
[314945363,1708692638907,-500.0,0.00027397,2]
[314945364,1708692638916,-500.0,0.00027397,2]
[314945365,1708692638926,-500.0,0.00027397,2]
[314945366,1708692638935,-500.0,0.00027397,2]
[314945367,1708692638945,-500.0,0.00027397,2]
[314945368,1708692638954,-500.0,0.00027397,2]
[314945369,1708692638963,-500.0,0.00027397,2]
[314945370,1708692638978,-500.0,0.00027397,2]
[314945371,1708692638987,-592.04569112,0.00027397,2]
[314945372,1708692638997,-500.0,0.00027397,2]
[314945373,1708692639007,-500.0,0.00027397,2]
[314945374,1708692639017,-500.0,0.00027397,2]
[314945375,1708692639027,-500.0,0.00027397,2]
[314945376,1708692639036,-500.0,0.00027397,2]
[314945377,1708692639046,-500.0,0.00027397,2]
[314945378,1708692639055,-500.0,0.00027397,2]
[314945379,1708692639065,-500.0,0.00027397,2]
[314945380,1708692639075,-251.15579904,0.00027397,2]
[314945381,1708692639084,-500.0,0.00027397,2]
[314945382,1708692639094,-500.0,0.00027397,2]
[314945383,1708692639104,-500.0,0.00027397,2]
[314945384,1708692639113,-500.0,0.00027397,2]
[314945385,1708692639124,-500.0,0.00027397,2]
[314945386,1708692639134,-500.0,0.00027397,2]
[314945387,1708692639144,-500.0,0.00027397,2]
[314945388,1708692639154,-431.95251444,0.00027397,2]
[314945389,1708692639163,-277.89896869,0.00027397,2]
[314945390,1708692639172,-500.0,0.00027397,2]
[314945391,1708692639182,-500.0,0.00027397,2]
[314945392,1708692639191,-500.0,0.00027397,2]
[314945393,1708692639201,-500.0,0.00027397,2]
[314945394,1708692639211,-500.0,0.00027397,2]
[314945395,1708692639222,-500.0,0.00027397,2]
[314945396,1708692639231,-500.0,0.00027397,2]
[314945397,1708692639240,-500.0,0.00027397,2]
[314945398,1708692639249,-500.0,0.00027397,2]
[314945399,1708692639259,-533.54361983,0.00027397,2]
[314945400,1708692639268,-500.0,0.00027397,2]
[314945401,1708692639277,-500.0,0.00027397,2]
[314945402,1708692639287,-500.0,0.00027397,2]
[314945403,1708692639296,-500.0,0.00027397,2]
[314945404,1708692639305,-500.0,0.00027397,2]
[314945405,1708692639314,-500.0,0.00027397,2]
[314945406,1708692639323,-500.0,0.00027397,2]
[314945407,1708692639332,-500.0,0.00027397,2]
[314945408,1708692639341,-500.0,0.00027397,2]
[314945409,1708692639350,-521.99089622,0.00027397,2]
[314945410,1708692639360,-500.0,0.00027397,2]
[314945411,1708692639369,-500.0,0.00027397,2]
[314945412,1708692639379,-500.0,0.00027397,2]
[314945413,1708692639388,-500.0,0.00027397,2]
[314945414,1708692639397,-500.0,0.00027397,2]
[314945415,1708692639406,-500.0,0.00027397,2]
[314945416,1708692639415,-523.46252412,0.00027397,2]
[314945417,1708692639428,-500.0,0.00027397,2]
[314945418,1708692639438,-500.0,0.00027397,2]
[314945419,1708692639448,-500.0,0.00027397,2]
[314945420,1708692639457,-522.38233872,0.00027397,2]
[314945421,1708692639466,-500.0,0.00027397,2]
[314945422,1708692639476,-500.0,0.00027397,2]
[314945423,1708692639486,-500.0,0.00027397,2]
[314945424,1708692639497,-500.0,0.00027397,2]
[314945425,1708692639506,-500.0,0.00027397,2]
[314945426,1708692639517,-500.0,0.00027397,2]
[314945427,1708692639527,-500.0,0.00027397,2]
[314945428,1708692639536,-500.0,0.00027397,2]
[314945429,1708692639546,-500.0,0.00027397,2]
[314945430,1708692639555,-500.0,0.00027397,2]
[314945431,1708692639565,-508.82,0.00027397,2]
[314945432,1708692639574,-500.0,0.00027397,2]
[314945433,1708692639583,-500.0,0.00027397,2]
[314945434,1708692639593,-503.84,0.00027397,2]
[314945435,1708692639602,-500.0,0.00027397,2]
[314945436,1708692639612,-500.0,0.00027397,2]
[314945437,1708692639624,-500.0,0.00027397,2]
[314945438,1708692639634,-500.0,0.00027397,2]
[314945439,1708692639643,-500.0,0.00027397,2]
[314945440,1708692639653,-150.0,0.00027397,2]
[314945441,1708692639662,-500.0,0.00027397,2]
[314945442,1708692639671,-500.0,0.00027397,2]
[314945443,1708692639680,-500.0,0.00027397,2]
[314945444,1708692639690,-245.25943475,0.00027397,2]
[314945445,1708692639699,-500.0,0.00027397,2]
[314945446,1708692639709,-500.0,0.00027397,2]
[314945447,1708692639718,-500.0,0.00027397,2]
[314945448,1708692639761,-554.11754145,0.00027397,2]
[314945449,1708692639771,-500.0,0.00027397,2]
[314945450,1708692639781,-500.0,0.00027397,2]
[314945451,1708692639791,-500.0,0.00027397,2]
[314945452,1708692639800,-500.0,0.00027397,2]
[314945453,1708692639810,-500.0,0.00027397,2]
[314945454,1708692639820,-500.0,0.00027397,2]
[314945455,1708692639832,-500.0,0.00027397,2]
[314945456,1708692639842,-500.0,0.00027397,2]
[314945457,1708692639852,-500.0,0.00027397,2]
[314945458,1708692639863,-500.0,0.00027397,2]
[314945459,1708692639874,-500.0,0.00027397,2]
[314945460,1708692639884,-500.0,0.00027397,2]
[314945461,1708692639894,-520.36857423,0.00027397,2]
[314945462,1708692639904,-523.98516288,0.00027397,2]
[314945463,1708692639913,-500.0,0.00027397,2]
[314945464,1708692639924,-500.0,0.00027397,2]
[314945466,1708692639934,-500.0,0.00027397,2]
[314945468,1708692639943,-500.0,0.00027397,2]
[314945469,1708692639952,-500.0,0.00027397,2]
[314945470,1708692639961,-500.0,0.00027397,2]
[314945471,1708692639971,-500.0,0.00027397,2]
[314945472,1708692639981,-500.0,0.00027397,2]
[314945473,1708692639991,-500.0,0.00027397,2]
[314945474,1708692640001,-500.0,0.00027397,2]
[314945475,1708692640010,-500.0,0.00027397,2]
[314945476,1708692640020,-500.0,0.00027397,2]
[314945477,1708692640030,-500.0,0.00027397,2]
[314945478,1708692640039,-500.0,0.00027397,2]
[314945479,1708692640049,-500.0,0.00027397,2]
[314945480,1708692640058,-500.0,0.00027397,2]
[314945481,1708692640068,-500.0,0.00027397,2]
[314945482,1708692640077,-500.0,0.00027397,2]
[314945483,1708692640086,-528.53165892,0.00027397,2]
[314945484,1708692640095,-500.0,0.00027397,2]
[314945485,1708692640104,-500.0,0.00027397,2]
[314945486,1708692640115,-500.0,0.00027397,2]
[314945487,1708692640126,-500.0,0.00027397,2]
[314945488,1708692640136,-500.0,0.00027397,2]
[314945489,1708692640146,-500.0,0.00027397,2]
[314945490,1708692640156,-500.0,0.00027397,2]
[314945491,1708692640165,-500.0,0.00027397,2]
[314945492,1708692640175,-500.0,0.00027397,2]
[314945493,1708692640184,-500.0,0.00027397,2]
[314945494,1708692640194,-500.0,0.00027397,2]
[314945495,1708692640203,-500.0,0.00027397,2]
[314945496,1708692640212,-500.0,0.00027397,2]